Cogmind - Beta 17 @@@ ROGUE MODE // 2026.07.07 @ 17:56:29 Player: kite Result: Self-destructed Performance ------------- Evolutions (2) 1000 Regions Visited (7) 1400 Robots Destroyed (58) 290 Value Destroyed (1483) 1483 Prototype IDs (26) 520 Alien Tech Used (0) 0 Bonus (321) 321 TOTAL SCORE: 5014 Bonus ------- Follower Combat Kills 21 Aligned with FarCom 300 Cogmind --------- Core Integrity 341/550 Matter 300/300 Energy 280/280 System Corruption 0% Temperature Cool (0) Movement Treading (320) Ox2 Location -8/Materials Parts ------- > --- POWER (1) -------- Heavy Ion Engine > --- PROPULSION (4) --- Light Treads > --- UTILITY (3) ------ High-capacity Storage Unit Melee Analysis Suite > --- WEAPON (3) ------- Great Maul Great Maul Great Maul > --- INVENTORY (20) --- Heavy Ion Engine Aluminum Leg Aluminum Leg Titanium Leg High-capacity Storage Unit High-capacity Matter Pod (200) Experimental Sensor Array Cloak of Protection Light Armor Plating Hardened Light Armor Plating Hardlight Generator Splice Drone Bay (6/6) Rocket Launcher Rocket Launcher Improved Datajack Great Maul Great Maul Great Maul Great Maul Great Maul Peak State ------------ > --- POWER ------------ Heavy Ion Engine > --- PROPULSION ------- Light Treads Light Treads Light Treads Light Treads > --- UTILITY ---------- High-capacity Storage Unit Light Armor Plating Hardlight Generator > --- WEAPON ----------- Improved Assault Rifle Improved Assault Rifle Improved Assault Rifle > --- INVENTORY -------- Improved Ion Engine Light Treads High-capacity Storage Unit High-capacity Matter Pod Experimental Sensor Array Melee Analysis Suite Cloak of Protection Light Armor Plating Medium Armor Plating Splice Drone Bay Rocket Launcher Rocket Launcher Great Maul Great Maul Great Maul Great Maul Great Maul Great Maul Great Maul Great Maul [Rating: 27] Favorites ----------- Power Improved Ion Engine Engine Improved Ion Engine Power Core Light Nuclear Core Propulsion Light Treads Treads Light Treads Utility Huge Storage Unit Device Splice Drone Bay Storage Huge Storage Unit Processor Transport Network Coupler Hackware Hacking Suite Protection Core Shielding Weapon Improved Assault Rifle Ballistic Gun Improved Assault Rifle Ballistic Cannon Improved Light Cannon Launcher Rocket Launcher Impact Weapon Great Maul Build | -11 -10 -10 -9 -9 -9 -8 -8 ------- Run | Yrd Mat Min Mat Min Exi Min Mat Slots Evolved 4 | . . . 2 . . . 2 Power . | . . . . . . . . Propulsion 2 | . . . 2 . . . . Utility 1 | . . . . . . . 1 Weapon 1 | . . . . . . . 1 Parts Attached 38 | 6 13 . 3 4 . . 12 Power 5 | 1 2 . . . . . 2 Engine 4 | 1 1 . . . . . 2 Core 1 | . 1 . . . . . . Reactor . | . . . . . . . . Propulsion 7 | 2 2 . 2 1 . . . Treads 7 | 2 2 . 2 1 . . . Leg . | . . . . . . . . Wheel . | . . . . . . . . Hover . | . . . . . . . . Flight . | . . . . . . . . Utility 12 | 1 4 . 1 1 . . 5 Device 2 | . . . 1 . . . 1 Storage 4 | 1 2 . . . . . 1 Processor 2 | . . . . . . . 2 Hackware 1 | . 1 . . . . . . Protection 3 | . 1 . . 1 . . 1 Artifact . | . . . . . . . . Weapon 14 | 2 5 . . 2 . . 5 Energy Gun . | . . . . . . . . Energy Cannon . | . . . . . . . . Ballistic Gun 7 | 2 2 . . 1 . . 2 Ballistic Cannon 3 | . 2 . . 1 . . . Launcher 1 | . 1 . . . . . . Special Weapon . | . . . . . . . . Impact Weapon 3 | . . . . . . . 3 Slashing Weapon . | . . . . . . . . Piercing Weapon . | . . . . . . . . Special Melee Weapon . | . . . . . . . . Unidentified Prototypes 3 | . 1 . 1 . . . 1 Parts Lost 10 | . . . . 3 . . 7 Power . | . . . . . . . . Propulsion 6 | . . . . 1 . . 5 Utility 2 | . . . . . . . 2 Weapon 2 | . . . . 2 . . . Highest Loss Streak 3 | . . . . 1 . . 3 To Critical Strikes . | . . . . . . . . Average Backups 19 | 1 13 21 24 24 23 24 19 Power 1 | . 1 1 1 2 2 2 1 Propulsion 3 | . 3 5 3 2 2 2 1 Utility 7 | . 4 8 10 9 9 10 7 Weapon 7 | . 4 7 8 10 10 10 8 Tool/Special . | . . . . . . . . Unused Backups 44 | . 11 . 3 . . 1 29 Power 3 | . 1 . . . . . 2 Propulsion 7 | . 2 . . . . . 5 Utility 18 | . 5 . 3 . . 1 9 Weapon 15 | . 3 . . . . . 12 Tool/Special 1 | . . . . . . . 1 Average Slot Usage (%) 98 | . 99 100 99 97 100 100 98 Engine 11 | . 10 14 11 11 11 11 9 Treads 34 | . 28 28 43 41 44 44 34 Device 2 | . . . 5 6 . . 3 Storage 12 | . 14 14 11 11 11 11 9 Protection 10 | . 12 14 5 4 11 11 8 Ballistic Gun 13 | . 20 . . 4 22 22 18 Ballistic Cannon 10 | . 7 28 22 17 . . . Impact Weapon 1 | . . . . . . . 8 Peak Build Rating 27 | 6 15 15 23 23 19 19 27 Average Rating 17 | 4 11 13 19 20 19 19 25 On Entrance 14 | . 6 13 15 23 19 19 19 Avg Prop Armor Cover (%) . | . . . . . . . . Naked Turns . | . . . . . . . . Heaviest Build 103 | 13 96 96 103 103 96 96 99 Greatest Support 80 | 40 40 40 80 80 80 80 80 Greatest Overweight (x) 2 | . 2 2 1 1 1 1 1 Average Overweight (x) . | . . 2 1 1 1 1 . Largest Inventory Capacity 25 | 8 25 25 25 25 25 25 25 Average Capacity 22 | 7 19 25 25 25 25 25 20 Most Carried 25 | 4 23 24 25 25 25 25 23 Average Carried 19 | 1 13 21 24 24 23 24 19 Final Capacity 25 | 8 25 25 25 25 25 25 20 Final Carried 25 | 4 20 24 25 23 25 24 20 Class Distribution -------------------- 84% | Mutant 5% | Tank 4% | Gladiator 3% | Scavenger-Skirmisher Dominant Class ---------------- Mutant | -10/Materials Mutant | -10/Mines Mutant | -9/Materials Mutant | -9/Mines Mutant | -9/Exiles Mutant | -8/Mines Tank | -8/Materials Resources | -11 -10 -10 -9 -9 -9 -8 -8 ----------- Run | Yrd Mat Min Mat Min Exi Min Mat Matter Collected 1851 | . 615 536 163 165 . . 372 Remotely . | . . . . . . . . Salvage Created 1869 | . 634 101 115 127 . . 892 Parts 100 | . 39 9 7 12 . . 33 Haulers Intercepted 2 | . 2 . . . . . . Recyclers Shooed 2 | . 2 . . . . . . Parts Field Recycled . | . . . . . . . . Retrieved Matter . | . . . . . . . . Parts Self-Destructed . | . . . . . . . . Prevented . | . . . . . . . . Parts Restored . | . . . . . . . . Kills | -11 -10 -10 -9 -9 -9 -8 -8 ------- Run | Yrd Mat Min Mat Min Exi Min Mat Combat Hostiles Destroyed 43 | . 14 7 5 5 . . 12 Melee 3 | . . . . . . . 3 Guns 17 | . 8 . . 1 . . 8 Cannons 16 | . . 7 5 4 . . . AOE 6 | . 6 . . . . . . Classes Destroyed 9 | . 7 . 1 . . . 1 Worker 3 | . 1 1 . . . . 1 Builder 2 | . 1 . . . . . 1 Hauler 2 | . 2 . . . . . . Recycler 7 | . 2 . . 1 . . 4 Operator 1 | . 1 . . . . . . Swarmer 13 | . 6 3 . 4 . . . Grunt 25 | . 8 4 2 . . . 11 Duelist 1 | . . . . . . . 1 Sentry 3 | . . . 3 . . . . Best Kill Streak 8 | . 8 3 3 4 . . 4 Combat Bots Only 8 | . 8 3 3 4 . . 3 Max Kills in Single Turn 4 | . 4 2 1 1 . . 2 Gunslinging . | . . . . . . . . Exploded 4 | . 4 . . . . . . Melee 1 | . . . . . . . 1 Uniques/NPCs Destroyed 1 | . . . . 1 . . . YI-UF0 (-9/Mines) Combat | -11 -10 -10 -9 -9 -9 -8 -8 -------- Run | Yrd Mat Min Mat Min Exi Min Mat Hostile Shots Fired 203 | . 56 24 36 28 . . 59 Missed 57 | . 18 5 16 7 . . 11 Hits 146 | . 38 19 20 21 . . 48 Projectile 146 | . 38 19 20 21 . . 48 AOE 10 | . . . . 10 . . . Critical Strikes 3 | . 1 . 1 . . . 1 Damage Taken 2396 | . 482 238 266 456 . . 954 Core 379 | . 52 19 25 74 . . 209 Absorbed by Shields . | . . . . . . . . Redirected to Shielding 16 | . 10 4 2 . . . . Core Remaining (%) 82 | 100 . 71 . . . 75 . Volleys Fired 127 | 1 49 19 17 13 . . 28 Largest 3 | 2 2 2 2 2 . . 3 Hottest 69 | 40 66 66 66 66 . . 69 Shots Fired 277 | 2 96 38 34 23 . . 84 Gun 173 | 2 86 . . 1 . . 84 Cannon 102 | . 8 38 34 22 . . . Launcher 2 | . 2 . . . . . . Special . | . . . . . . . . Kinetic 275 | 2 94 38 34 23 . . 84 Thermal . | . . . . . . . . Explosive 2 | . 2 . . . . . . Electromagnetic . | . . . . . . . . Robot Hit Streak 19 | . 10 10 16 5 . . 19 Robot Miss Streak 5 | . 5 5 1 3 . . 2 Penetration Max . | . . . . . . . . Secondary Targets 1 | . 1 . . . . . . Max Gunslinging Chain 1 | . 1 . . . . . . Shots Hit Robots 192 | . 56 24 23 12 . . 77 Core Hits 89 | . 32 9 6 7 . . 35 Critical Kills 2 | . . . . . . . 2 Critical Parts Destroyed 2 | . . . . . . . 2 Critical Strikes 5 | . . 1 . . . . 4 Blast 1 | . . 1 . . . . . Smash 4 | . . . . . . . 4 Melee Attacks 23 | . . . . . . . 23 Impact 23 | . . . . . . . 23 Slashing . | . . . . . . . . Piercing . | . . . . . . . . Sneak Attacks 3 | . . . . . . . 3 Combat Hostiles . | . . . . . . . . Follow-up Attacks 3 | . . . . . . . 3 Damage Inflicted 4569 | . 1048 593 523 355 . 11 2039 Guns 1617 | . 648 . . 17 . . 952 Cannons 1419 | . 80 563 523 253 . . . Explosions 622 | . 310 . . 85 . . 227 Melee 860 | . . . . . . . 860 Ramming 51 | . 10 30 . . . 11 . Kinetic 3036 | . 728 563 523 270 . . 952 Thermal 85 | . . . . 85 . . . Explosive 537 | . 310 . . . . . 227 Electromagnetic . | . . . . . . . . Impact 860 | . . . . . . . 860 Slashing . | . . . . . . . . Piercing . | . . . . . . . . Highest Corruption . | . . . . . . . . Average Corruption . | . . . . . . . . Corruption Purged . | . . . . . . . . Corruption Blocked . | . . . . . . . . Overload Shots . | . . . . . . . . Overflow Damage 413 | . 18 13 . 1 . . 381 Projectiles 23 | . 10 13 . . . . . Explosions 89 | . 8 . . 1 . . 80 Melee 301 | . . . . . . . 301 Knockbacks 13 | . 1 7 3 1 . . 1 Impact 1 | . . . . . . . 1 Kinetic 10 | . 1 5 3 1 . . . Secondary 2 | . . 2 . . . . . Self-Inflicted Damage 114 | . . . . . . . 114 Shots 1 | . . . . . . . 1 Rammed 6 | . 3 2 . . . 1 . Targets Rammed 7 | . 3 3 . . . 1 . Kicked . | . . . . . . . . Crushed 1 | . . 1 . . . . . Highest Temperature 132 | . 42 132 27 36 . . 80 Average Temperature 24 | . 15 48 16 12 . . 20 Received Heat Transfer 762 | . 228 102 108 . . . 324 Siege Activations . | . . . . . . . . Martial Activations . | . . . . . . . . Shielding Activations . | . . . . . . . . Robots Disrupted . | . . . . . . . . Combat Hostiles . | . . . . . . . . Robots Corrupted 1 | . . . . . . . 1 Combat Hostiles 1 | . . . . . . . 1 Parts Fried 1 | . . . . . . . 1 Impact Corruptions 7 | . . . . . . . 7 Robots Melted . | . . . . . . . . Combat Hostiles . | . . . . . . . . Parts Melted . | . . . . . . . . Heat Transferred 100 | . . . . 100 . . . Parts Sabotaged . | . . . . . . . . Parts Stolen . | . . . . . . . . Parts Stripped . | . . . . . . . . Power Chain Reactions . | . . . . . . . . Alert | -11 -10 -10 -9 -9 -9 -8 -8 ------- Run | Yrd Mat Min Mat Min Exi Min Mat Maximum Alert Level 1 | . 1 . . . . . . Low Security (%) 99 | 100 99 100 100 100 . 100 100 Level 1 . | . . . . . . . . Level 2 . | . . . . . . . . Level 3 . | . . . . . . . . Level 4 . | . . . . . . . . Level 5 . | . . . . . . . . High Security . | . . . . . . . . Max Security . | . . . . . . . . Peak Influence 205 | . 205 103 74 122 . . 102 Initial 16 | . . 7 . 16 . . . Average 34 | . 54 24 18 30 . . 29 Influence Increases 1331 | . 408 176 142 232 . . 373 Destroy 0b10 Robot/C 900 | . 280 140 100 140 . . 240 Destroy 0b10 Robot/NC 75 | . 35 5 . 5 . . 30 Destroy Leader 174 | . 64 30 30 20 . . 30 Allied During Kill 11 | . . . . 11 . . . Successful Hack 14 | . 6 . 8 . . . . Disable Machine 90 | . . . . 45 . . 45 Destroy Structure 67 | . 23 1 4 11 . . 28 Influence Decreases 1303 | . 388 196 98 258 18 . 345 Entered New Map 59 | . . 13 . 28 18 . . Time Decay 1148 | . 388 183 98 204 . . 275 Lost Part 90 | . . . . 20 . . 70 Lost Ally 6 | . . . . 6 . . . Squads Dispatched 5 | . 3 . . . . . 2 Investigation 1 | . 1 . . . . . . Extermination . | . . . . . . . . Reinforcement 4 | . 2 . . . . . 2 Assault . | . . . . . . . . Garrison . | . . . . . . . . Intercept . | . . . . . . . . Searches Triggered . | . . . . . . . . Construction Impeded . | . . . . . . . . Haulers Reinforced . | . . . . . . . . Active Scanning Responses . | . . . . . . . . Cargo Convoy Interrupts . | . . . . . . . . Stealth | -11 -10 -10 -9 -9 -9 -8 -8 --------- Run | Yrd Mat Min Mat Min Exi Min Mat Distress Signals 2 | . . 1 . . . . 1 Communications Jammed . | . . . . . . . . Distress Signals . | . . . . . . . . Times Spotted 64 | . 27 5 5 8 . . 19 Peak Tracking Total 9 | . 9 2 3 4 . . 3 Tactical Retreats . | . . . . . . . . Traps | -11 -10 -10 -9 -9 -9 -8 -8 ------- Run | Yrd Mat Min Mat Min Exi Min Mat Traps Triggered 2 | . 2 . . . . . . Indirectly . | . . . . . . . . Trap Hack Attempts . | . . . . . . . . Triggered . | . . . . . . . . Disarmed . | . . . . . . . . Reprogrammed . | . . . . . . . . Reused . | . . . . . . . . Traps Extracted . | . . . . . . . . Installed . | . . . . . . . . Triggered . | . . . . . . . . Machines | -11 -10 -10 -9 -9 -9 -8 -8 ---------- Run | Yrd Mat Min Mat Min Exi Min Mat Machines Disabled 6 | . . . . 3 . . 3 Max in Single Turn 3 | . . . . 3 . . 2 Machines Repaired . | . . . . . . . . Machines Dismantled . | . . . . . . . . Machines Sabotaged . | . . . . . . . . Overloaded Fab Kills . | . . . . . . . . Hacking | -11 -10 -10 -9 -9 -9 -8 -8 --------- Run | Yrd Mat Min Mat Min Exi Min Mat Machines Accessed 8 | . 4 1 1 . 1 . 1 Terminals 4 | . 2 . 1 . . . 1 Fabricators . | . . . . . . . . Repair Stations . | . . . . . . . . Recycling Units 2 | . 2 . . . . . . Scanalyzers . | . . . . . . . . Garrison Access . | . . . . . . . . Total Hacks 17 | . 12 1 2 . 1 . 1 Successful 14 | . 9 1 2 . 1 . 1 Failed 3 | . 3 . . . . . . Catastrophic 1 | . 1 . . . . . . Database Lockouts . | . . . . . . . . Manual 10 | . 6 . 2 . 1 . 1 Terminals 9 | . 6 . 2 . . . 1 Fabricators . | . . . . . . . . Repair Stations . | . . . . . . . . Recycling Units 6 | . 6 . . . . . . Scanalyzers . | . . . . . . . . Garrison Access . | . . . . . . . . Terminal Hacks 6 | . 2 1 1 . 1 . 1 Part Schematic 2 | . 2 . . . . . . Open Door 1 | . . 1 . . . . . Branch Access Points 1 | . . . 1 . . . . Zone Layout 1 | . . . . . . . 1 Proto ID Catalog 1 | . . . . . 1 . . Fabricator Hacks . | . . . . . . . . Repair Station Hacks . | . . . . . . . . Recycling Unit Hacks 6 | . 6 . . . . . . Recycle Component 2 | . 2 . . . . . . Process 2 | . 2 . . . . . . Retrieve Matter 2 | . 2 . . . . . . Scanalyzer . | . . . . . . . . Garrison Access Hacks . | . . . . . . . . Unauthorized Hacks 2 | . 1 . 1 . . . . Terminals 2 | . 1 . 1 . . . . Botnet 2 | . 1 . 1 . . . . Fabricators . | . . . . . . . . Repair Stations . | . . . . . . . . Recycling Units . | . . . . . . . . Scanalyzers . | . . . . . . . . Garrison Access . | . . . . . . . . Data Cores Recovered . | . . . . . . . . Used . | . . . . . . . . Hacking Detections 3 | . 3 . . . . . . Full Trace Events 1 | . 1 . . . . . . Feedback Events . | . . . . . . . . Feedback Blocked . | . . . . . . . . Robot Schematics Acquired . | . . . . . . . . Robots Built . | . . . . . . . . Authchips . | . . . . . . . . Time . | . . . . . . . . Total Robot Build Rating . | . . . . . . . . Part Schematics Acquired 2 | . 2 . . . . . . Parts Built . | . . . . . . . . Authchips . | . . . . . . . . Time . | . . . . . . . . Total Part Build Rating . | . . . . . . . . Part Studies Acquired . | . . . . . . . . Parts Repaired . | . . . . . . . . Time . | . . . . . . . . Parts Recycled 2 | . 2 . . . . . . Recycled Matter 184 | . 184 . . . . . . Retrieved Matter 344 | . 344 . . . . . . Retrieved Components . | . . . . . . . . Parts Scanalyzed . | . . . . . . . . Part Schematics Acquired . | . . . . . . . . Parts Damaged . | . . . . . . . . Bothacking | -11 -10 -10 -9 -9 -9 -8 -8 ------------ Run | Yrd Mat Min Mat Min Exi Min Mat Used RIF Installer . | . . . . . . . . Robots Hacked . | . . . . . . . . Non-combat . | . . . . . . . . Combat . | . . . . . . . . Robot Hacks Applied . | . . . . . . . . Relay Couplers Released . | . . . . . . . . Fabnet Peak Effective % . | . . . . . . . . Robots Rewired . | . . . . . . . . Allies Hacked . | . . . . . . . . Hacks Repelled . | . . . . . . . . Allies | -11 -10 -10 -9 -9 -9 -8 -8 -------- Run | Yrd Mat Min Mat Min Exi Min Mat Total Allies 4 | . . 1 . 3 . . . Largest Group 3 | . . 1 . 3 . . . Highest-Rated Group 40 | . . 31 . 40 . . . Highest-Rated Ally 31 | . . 31 . 16 . . . Total Orders . | . . . . . . . . Ally Attacks 9 | . . . . 9 . . . Total Damage 67 | . . . . 67 . . . Kills 3 | . . . . 3 . . . Allies Corrupted . | . . . . . . . . Allies Melted . | . . . . . . . . Intel | -11 -10 -10 -9 -9 -9 -8 -8 ------- Run | Yrd Mat Min Mat Min Exi Min Mat Active Infowar (turns) 337 | . . . . . . . 337 T.N.C. 337 | . . . . . . . 337 Robot Analysis Total . | . . . . . . . . Derelict Logs Recovered 3 | . . 1 . 2 . . . Drone Launches . | . . . . . . . . Drone Recoveries . | . . . . . . . . Exploration | -11 -10 -10 -9 -9 -9 -8 -8 ------------- Run | Yrd Mat Min Mat Min Exi Min Mat Turns Passed 5845 | 68 1765 816 332 1060 548 280 976 Spaces Moved 2188 | 37 716 233 109 415 228 115 335 Core 5 | 5 . . . . . . . Treads 2183 | 32 716 233 109 415 228 115 335 Legs . | . . . . . . . . Wheels . | . . . . . . . . Hover . | . . . . . . . . Flight . | . . . . . . . . Fastest Speed 50 | 50 160 320 240 240 240 240 160 Average Speed 229 | 145 217 320 240 240 240 240 173 Slowest Speed 320 | 160 320 320 240 240 240 240 240 Overloaded Moves . | . . . . . . . . Propulsion Burnouts . | . . . . . . . . Robots Hopped . | . . . . . . . . Potential Cave-ins . | . . . . . . . . Cave-ins Triggered . | . . . . . . . . Exploration Rate (%) 45 | 4 83 49 13 94 59 31 31 Regions Visited 7 Branch Regions 4 Pre-discovered Areas 1 | . . . . 1 . . . Known Exits Taken 1 | . . . 1 . . . . Unknown Exits Taken 6 | 1 1 1 . 1 1 1 . Scrap Searched 1 | . . . . 1 . . . Spaces Dug . | . . . . . . . . Terrain Destroyed 59 | . 20 1 1 11 . . 26 Melee . | . . . . . . . . Projectile 3 | . 1 1 1 . . . . AOE 56 | . 19 . . 11 . . 26 Terrain Rammed . | . . . . . . . . Walls Destroyed . | . . . . . . . . Machines Disabled . | . . . . . . . . Actions | -11 -10 -10 -9 -9 -9 -8 -8 --------- Run | Yrd Mat Min Mat Min Exi Min Mat Total 2734 | 47 830 261 148 456 231 119 642 Wait 248 | . 8 3 7 21 . 3 206 Move 2181 | 36 715 232 108 414 227 114 335 Hop . | . . . . . . . . Pick Up 68 | 4 26 4 8 2 3 . 21 Fast Attach 13 | 6 5 . . . . . 2 Attach 10 | . . . 2 3 . . 5 Detach . | . . . . . . . . Swap 20 | . 10 . 1 2 . . 7 Drop 44 | . 14 . 5 1 1 1 22 Fire 127 | 1 49 19 17 13 . . 28 Melee 16 | . . . . . . . 16 Ram . | . . . . . . . . Kick . | . . . . . . . . Crush 7 | . 3 3 . . . 1 . Escape Stasis . | . . . . . . . . Rewire . | . . . . . . . . Trap . | . . . . . . . . Miscellaneous . | . . . . . . . . Route ------- -11/Scrapyard -10/Materials (discovered 3 exits: *Mat x2 / *Min) -10/Mines -9/Materials (discovered 2 exits: *Min x2) -9/Mines (discovered 3 exits: *Mat x2 / *Exi) -9/Exiles -8/Mines -8/Materials (discovered 2 exits: [*Fac] / Sto) History --------- Turn | Location | Event 44 | -11/Scrapyard | Discovered new exit (range 14) 69 | -11/Scrapyard | Entered Materials 309 | -10/Materials | Build established: Mutant 636 | -10/Materials | Discovered new exit (range 9) 932 | -10/Materials | Discovered new exit (range 16) 967 | -10/Materials | Destroyed 8 combat bots 1618 | -10/Materials | Discovered new exit (range 16) 1834 | -10/Materials | Entered Mines 2089 | -10/Mines | Found a damaged Exp. Sensor Array with a note attached 2098 | -10/Mines | Found Prototype Device 2161 | -10/Mines | Found the Drone Emporium 2176 | -10/Mines | Found Prototype Device 2212 | -10/Mines | Received a Mining Laser from a helpful Derelict 2605 | -10/Mines | Discovered new exit (range 3) 2650 | -10/Mines | Entered Materials 2650 | -9/Materials | Evolved 2 slots: Propulsion x2 2706 | -9/Materials | Identified exit to Mines 2817 | -9/Materials | Identified Splice Drone Bay 2982 | -9/Materials | Entered Mines 2994 | -9/Mines | Learned Materials non-interactive machine intel 3076 | -9/Mines | Assisted by bots powering up and referring to "LRC-V3" 3101 | -9/Mines | YI-UF0 nonchalantly dropped a Grenade Launcher on the ground 3282 | -9/Mines | Discovered new exit (range 7) 3638 | -9/Mines | Destroyed YI-UF0 3659 | -9/Mines | Lost 3 allies 3794 | -9/Mines | Discovered new exit (range 10) 4013 | -9/Mines | Learned location of Zion (-7) 4032 | -9/Mines | Deemed a non-threat by the Exiles lab entrance 4032 | -9/Mines | Discovered new exit (range 5) 4042 | -9/Mines | Entered Exiles 4107 | -9/Exiles | Met 8R-AWN 4143 | -9/Exiles | Met EX-HEX 4218 | -9/Exiles | Met EX-BIN 4244 | -9/Exiles | Aligned with FarCom system 4246 | -9/Exiles | Given EX-Vault access code 4302 | -9/Exiles | Opened EX-Vault 4318 | -9/Exiles | Found Cloak of Protection 4365 | -9/Exiles | Warned to stay clear of 0b10 Research branches 4400 | -9/Exiles | Exiles lab attacked by MAIN.C 4561 | -9/Exiles | Discovered new exit (range 14) 4590 | -9/Exiles | Left Exiles lab with Cloak of Protection 4590 | -9/Exiles | Entered Mines 4850 | -8/Mines | Discovered new exit (range 5) 4870 | -8/Mines | Entered Materials 4870 | -8/Materials | Evolved 2 slots: Utility x1, Weapon x1 4871 | -8/Materials | Identified exit to Storage 4872 | -8/Materials | Loaded intel: 55 non-interactive machine locations 5514 | -8/Materials | Build established: Tank 5807 | -8/Materials | Discovered new exit (range 9) 5846 | -8/Materials | Self-destructed Last Messages --------------- 05825_ The unstable cave ceiling collapses. 05826_ U-05 Engineer lays Concrete. 05829_ Penetrated by Slug. 05831_ U-05 Engineer lays Concrete. 05832_ Penetrated by Slug. 05833_ U-05 Engineer lays Concrete. 05837_ U-05 Engineer builds a Wall. 05839_ Slug penetrates Purification Channel. 05840_ X-62 Marksman suffers critical hit (Smash). 05840_ Destroyed Imp. Cooling System. 05840_ X-62 Marksman system corrupted by crushing effect. 05842_ Penetrated by Slug. 05842_ U-05 Engineer builds a Wall. 05842_ Penetrated by Slug. 05845_ Lgt. Treads destroyed. 05845_ Med. Armor Plating destroyed. 05845_ Penetrated by Slug. 05845_ Lgt. Treads destroyed. Map ----- +----------------------------------------------------+ | ????????????????""" ????????????# "" # | | ???????????? ? ?""" #???????????# "" # | | # # """ ########????# [" + | | # # ###!!!!##???# [ # | | # """ """ + ##! !#???# [ # | | # """ """ # """ ## #???########### | | # """ """ # """ # ############## | | # # """ | | # # % T | | ########### % | | ??????# ###+########## | | ??????# < # # # ## #! %% #??????#### | | ??????# # # # ="" #?????????? | | ??????####+#### ! # # "" ########### | | ???????# = # !=% # # T" ## # | | ???????# !% " + # "" ## """# | | ???????# """ = # # "" ## """# | | ???????# """ T ### # ## """# | | ???????# """ "# #?# ######## + | | ???????# # ! #?# #??????# """# | | ???????########## # ######## #??????# """# | | ????????# ####u = # #??????# """# | | #######?# """ #??#H !# #??????# * # | | # "" ### """ #?## ""x # #??????########## | | # ""S # + """ #?#;x # ################# | | # "" # # #??# @" # | | # # ##+######??# % + | | # + #########" " # """ | | # # # #""" # """" | | # # # #""" # """"" ######## | | ####### # # " # """"" #??????? | | ????### + # [ # """ ######## | | #####Y### # ####+#### | | ?????????????????????????### ! ! | | ?????????????????????# = = = % | | ?????????????????o + #########/####### | | ????"""????????????### ###+??????# % ! #???? | | ????"""???????????????????????????# """" #???? | | ????"""???????????????????????????# """" #???? | | ??????????????????????????????????# """" ##### | | ????"""???????????????????????????# # | | ????"""???????????????????????????# #= | | ????"""???????????????????????????######## | | ?????????????????????????????????????????# """ | | ?????????????????????????????????????????# """ | | ?????????????????????????????????????????# """ | | ?????????????????????????????????????????##### | | ?????????????????????????"""?????????????# | | ????????????????????????"""""????????????# | | ????????????????????????"""""????????????# | +----------------------------------------------------+ Best States ------------- Heat Dissipation 31 Energy Generation 14 Energy Capacity 280 Matter Stores 300 Matter Capacity 300 Sight Range 16 Terrain Scan Density 10 Armor Coverage 225 Core Shielding 20 Evasion (%) 40 Melee Accuracy 5 Recoil Reduction 4 Offensive Hacking 10 Item Schematics ----------------- Hcp. Storage Unit | -10/Materials | Hacked Huge Storage Unit | -10/Materials | Hacked Robot Schematics ------------------ None Fabricated ------------ Nothing Repaired ---------- Nothing Studied --------- None Alien Tech Used ----------------- None Achievements -------------- None Challenges ------------ None Game ------ Seed ScimitarCombatChip Manual? 0 Play Time 00:21:36 Cumulative 430.5 hours Start 2026.07.07 @ 17:36:29 End 2026.07.07 @ 17:56:29 Sessions 1 Manual Loads 0 Difficulty Rogue Special Mode None Game No. 395 Rogue 395 Adventurer 0 Explorer 0 Win Type - Total 11 Types 7/0/2/1/0/0/0/0/0/1 Lore% 61 Gallery% 68 Achievement% 64 Wizard Run 0 Options --------- Layout 1 ASCII 0 Keyboard 0 Movement Mouse Keybinds 0 Fullscreen 2 Font 24/Cog Map View 50x35 Zoom Use 5% Tactical HUD 1 Map Filters NONE Filters NONE Steam 1 RUN: 27ae0172-5051-48ee-be11-d277ccb3043d